[Event "CZE Extraliga 2019-20"]
[Site "Czech Republic"]
[Date "2020.01.26"]
[Round "6.3"]
[White "KRO8 Malinovsky Karel IM"]
[Black "LYS6 Yemelin Vasily GM"]
[Result "1-0"]
[ECO "C67"]
[WhiteElo "2478"]
[BlackElo "2545"]
[Annotator "ChessBase"]
[PlyCount "57"]
[EventDate "2019.09.15"]
[EventType "team-tourn"]
[EventCountry "CZE"]
[SourceTitle "playchess.com"]
[Source "ChessBase"]
[SourceQuality "1"]
[TimeControl "40/5400+30:1800+30"]

1. e4 {[%emt 0:00:00]} e5 {[%emt 0:00:00]} 2. Nf3 {[%emt 0:00:00]} Nc6 {[%emt 0:00:00]} 3. Bb5 {[%emt 0:00:00]} Nf6 {[%emt 0:00:30]} 4. O-O {[%emt 0:00:42]} Nxe4 {[%emt 0:00:06]} 5. Re1 {[%emt 0:01:20]} Nd6 {[%emt 0:00:09]} 6. Nxe5 {[%emt 0:00:08]} Be7 {[%emt 0:00:05]} 7. Bf1 {[%emt 0:00:32]} O-O {[%emt 0:05:52]} 8. Nf3 {[%emt 0:01:33]} Nf5 {[%emt 0:07:01]} 9. d4 {[%emt 0:01:35]} d5 {[%emt 0:00:06]} 10. Nc3 {[%emt 0:00:31]} Nh4 {[%emt 0:10:58]} 11. Nxh4 {[%emt 0:15:52]} Bxh4 {[%emt 0:00:46]} 12. Ne2 {[%emt 0:06:09]} Ne7 {[%emt 0:26:20]} 13. g3 {[%emt 0:09:31]} Bf6 {[%emt 0:00:21]} 14. Nf4 {[%emt 0:00:07]} Nf5 {[%emt 0:08:35]} 15. c3 {[%emt 0:02:38]} c6 {[%emt 0:00:08]} 16. Bd3 {[%emt 0:06:47]} Nd6 {[%emt 0:02:42]} 17. Qf3 {[%emt 0:14:27]} g6 {[%emt 0:12:46]} 18. b3 {[%emt 0:10:55]} Re8 {[%emt 0:18:33]} 19. Ba3 {[%emt 0:04:39]} Be7 {[%emt 0:01:03]} 20. Re5 {[%emt 0:06:41]} Bf8 {[%emt 0:03:19]} 21. Rae1 {[%emt 0:04:32]} Bd7 {[%emt 0:00:37]} 22. c4 {[%emt 0:06:44]} dxc4 {[%emt 0:00:16]} 23. bxc4 {[%emt 0:00:28]} Rxe5 {[%emt 0:00:35]} 24. Rxe5 {[%emt 0:00:15]} Qf6 {[%emt 0:00:36]} 25. Qe2 {[%emt 0:02:11]} Nb5 {[%emt 0:00:32]} 26. Bb2 {[%emt 0:01:21]} Nc7 {[%emt 0:00:22]} 27. d5 {[%emt 0:00:55]} Qd6 {[%emt 0:00:34]} 28. Nh5 {[%emt 0:01:03]} Re8 {[%emt 0:00:00]} 29. Nf6+ 1-0

[Event "CZE Extraliga 2019-20"]
[Site "Czech Republic"]
[Date "2020.01.26"]
[Round "6.3"]
[White "Druska, Juraj"]
[Black "Velicka, Petr"]
[Result "1/2-1/2"]
[ECO "B13"]
[WhiteElo "2460"]
[BlackElo "2420"]
[Annotator "ChessBase"]
[PlyCount "125"]
[EventDate "2019.09.15"]
[EventType "team-tourn"]
[EventCountry "CZE"]
[SourceTitle "playchess.com"]
[Source "ChessBase"]
[SourceQuality "1"]
[TimeControl "40/5400+30:1800+30"]

1. e4 {[%emt 0:00:00]} c6 {[%emt 0:00:00]} 2. d4 {[%emt 0:00:00]} d5 {[%emt 0:00:00]} 3. exd5 {[%emt 0:00:05]} cxd5 {[%emt 0:00:00]} 4. Bd3 {[%emt 0:00:06]} Nc6 {[%emt 0:00:00]} 5. c3 {[%emt 0:00:03]} Nf6 {[%emt 0:00:12]} 6. h3 {[%emt 0:00:12]} e5 {[%emt 0:00:08]} 7. dxe5 {[%emt 0:01:56]} Nxe5 {[%emt 0:00:10]} 8. Qe2 {[%emt 0:00:02]} Qe7 {[%emt 0:00:10]} 9. Bc2 {[%emt 0:00:04]} Qe6 {[%emt 0:04:33]} 10. Nd2 {[%emt 0:01:46]} Bc5 {[%emt 0:01:48]} 11. Ngf3 {[%emt 0:01:02]} Nxf3+ {[%emt 0:00:17]} 12. Nxf3 {[%emt 0:00:05]} Qxe2+ {[%emt 0:01:54]} 13. Kxe2 {[%emt 0:01:28]} O-O {[%emt 0:00:08]} 14. Rd1 {[%emt 0:03:19]} Bd7 {[%emt 0:08:20]} 15. Bg5 {[%emt 0:13:09]} Bb5+ {[%emt 0:14:08]} 16. Bd3 {[%emt 0:00:08]} Ba4 {[%emt 0:04:02]} 17. b3 {[%emt 0:15:12]} Bc6 {[%emt 0:05:50]} 18. Bxf6 {[%emt 0:03:13]} gxf6 {[%emt 0:00:05]} 19. Nd4 {[%emt 0:01:22]} Rfe8+ {[%emt 0:00:48]} 20. Kd2 {[%emt 0:03:00]} Bxd4 {[%emt 0:07:20]} 21. cxd4 {[%emt 0:00:07]} h6 {[%emt 0:03:27]} 22. b4 {[%emt 0:13:57]} Kf8 {[%emt 0:06:05]} 23. b5 {[%emt 0:14:35]} Bd7 {[%emt 0:00:38]} 24. Rdc1 {[%emt 0:00:05]} Rec8 {[%emt 0:00:48]} 25. Rc5 {[%emt 0:00:20]} Be6 {[%emt 0:01:12]} 26. Rac1 {[%emt 0:02:02]} b6 {[%emt 0:01:27]} 27. Rc7 {[%emt 0:04:26]} Ke8 {[%emt 0:01:38]} 28. Ke3 {[%emt 0:00:10]} Kd8 {[%emt 0:02:12]} 29. Rxc8+ {[%emt 0:00:38]} Rxc8 {[%emt 0:00:10]} 30. Rxc8+ {[%emt 0:00:07]} Bxc8 {[%emt 0:00:04]} 31. Kf4 {[%emt 0:00:17]} Bd7 {[%emt 0:09:58]} 32. a4 {[%emt 0:03:49]} Ke7 {[%emt 0:02:06]} 33. Bf5 {[%emt 0:00:06]} Be6 {[%emt 0:00:33]} 34. g4 {[%emt 0:00:07]} Kf8 {[%emt 0:01:43]} 35. h4 {[%emt 0:00:14]} Kg7 {[%emt 0:04:45]} 36. Bc2 {[%emt 0:09:09]} Kf8 {[%emt 0:02:25]} 37. Bb1 {[%emt 0:02:50]} Ke7 {[%emt 0:01:27]} 38. Bf5 {[%emt 0:00:49]} Kf8 {[%emt 0:00:56]} 39. g5 {[%emt 0:06:02]} fxg5+ {[%emt 0:04:08]} 40. hxg5 {[%emt 0:00:05]} h5 {[%emt 0:02:25]} 41. Bc2 {[%emt 0:13:42]} h4 {[%emt 0:04:57]} 42. Ke3 {[%emt 0:00:16]} h3 {[%emt 0:03:14]} 43. Kf3 {[%emt 0:00:48]} Kg7 {[%emt 0:00:58]} 44. Kg3 {[%emt 0:00:09]} f6 {[%emt 0:00:19]} 45. gxf6+ {[%emt 0:08:49]} Kxf6 {[%emt 0:00:37]} 46. Bd3 {[%emt 0:00:04]} Bg4 {[%emt 0:01:00]} 47. Bf1 {[%emt 0:01:55]} Bd1 {[%emt 0:00:57]} 48. Bxh3 {[%emt 0:01:01]} Bxa4 {[%emt 0:00:07]} 49. Bf1 {[%emt 0:00:06]} Bc2 {[%emt 0:00:22]} 50. Kf4 {[%emt 0:00:11]} Bg6 {[%emt 0:00:20]} 51. Be2 {[%emt 0:01:48]} Be8 {[%emt 0:01:10]} 52. Bd3 {[%emt 0:00:14]} Bd7 {[%emt 0:00:13]} 53. Kg3 {[%emt 0:00:58]} Kg5 {[%emt 0:01:27]} 54. f4+ {[%emt 0:00:09]} Kf6 {[%emt 0:00:03]} 55. Kh4 {[%emt 0:01:14]} Bc8 {[%emt 0:01:16]} 56. Be2 {[%emt 0:02:42]} Bf5 {[%emt 0:00:26]} 57. Bf1 {[%emt 0:02:59]} Bc2 {[%emt 0:01:26]} 58. Kg4 {[%emt 0:00:33]} Bd1+ {[%emt 0:01:17]} 59. Kg3 {[%emt 0:00:09]} Bb3 {[%emt 0:00:55]} 60. Kf3 {[%emt 0:00:23]} Bc2 {[%emt 0:00:31]} 61. Ke3 {[%emt 0:00:08]} Bf5 {[%emt 0:00:26]} 62. Bg2 {[%emt 0:00:07]} Bd7 {[%emt 0:00:10]} 63. Bf1 {[%emt 0:01:43] Ke5 Ke4+} 1/2-1/2

[Event "CZE Extraliga 2019-20"]
[Site "Czech Republic"]
[Date "2020.01.26"]
[Round "6.4"]
[White "NOV10 Bartel Mateusz GM"]
[Black "BSS6 Zwardon Vojtech IM"]
[Result "1-0"]
[ECO "A40"]
[WhiteElo "2621"]
[BlackElo "2471"]
[Annotator "ChessBase"]
[PlyCount "79"]
[EventDate "2019.09.15"]
[EventType "team-tourn"]
[EventCountry "CZE"]
[SourceTitle "playchess.com"]
[Source "ChessBase"]
[SourceQuality "1"]
[TimeControl "40/5400+30:1800+30"]

1. d4 {[%emt 0:00:00]} Nf6 {[%emt 0:00:00]} 2. c4 {[%emt 0:00:00]} e6 {[%emt 0:00:18]} 3. g3 {[%emt 0:00:00]} c5 {[%emt 0:00:21]} 4. d5 {[%emt 0:00:00]} exd5 {[%emt 0:01:02]} 5. cxd5 {[%emt 0:00:00]} b5 {[%emt 0:00:28]} 6. Nf3 {[%emt 0:00:08]} Bb7 {[%emt 0:07:02]} 7. e4 {[%emt 0:00:08]} Nxe4 {[%emt 0:10:50]} 8. Bg2 {[%emt 0:00:04]} Be7 {[%emt 0:03:10]} 9. O-O {[%emt 0:00:46]} O-O {[%emt 0:01:04]} 10. Re1 {[%emt 0:01:08]} f5 {[%emt 0:04:02]} 11. Nc3 {[%emt 0:00:06]} Nxc3 {[%emt 0:00:40]} 12. bxc3 {[%emt 0:00:43]} Bf6 {[%emt 0:00:33]} 13. Rb1 {[%emt 0:18:02]} Bxc3 {[%emt 0:04:22]} 14. Re3 {[%emt 0:01:10]} Bf6 {[%emt 0:04:38]} 15. Rxb5 {[%emt 0:01:39]} Qc8 {[%emt 0:00:54]} 16. d6 {[%emt 0:05:59]} Kh8 {[%emt 0:18:30]} 17. Rxb7 {[%emt 0:02:06]} Qxb7 {[%emt 0:00:10]} 18. Ng5 {[%emt 0:00:03]} Qxg2+ {[%emt 0:05:52]} 19. Kxg2 {[%emt 0:00:05]} Bxg5 {[%emt 0:00:06]} 20. Rf3 {[%emt 0:05:17]} Bxc1 {[%emt 0:01:22]} 21. Qxc1 {[%emt 0:00:06]} Nc6 {[%emt 0:01:24]} 22. Qxc5 {[%emt 0:00:05]} g6 {[%emt 0:00:13]} 23. Rb3 {[%emt 0:03:03]} Rab8 {[%emt 0:04:05]} 24. h4 {[%emt 0:00:16]} Kg7 {[%emt 0:03:08]} 25. h5 {[%emt 0:01:10]} Rxb3 {[%emt 0:00:23]} 26. axb3 {[%emt 0:00:03]} gxh5 {[%emt 0:00:06]} 27. b4 {[%emt 0:05:38]} a6 {[%emt 0:00:57]} 28. Qb6 {[%emt 0:00:03]} Rf7 {[%emt 0:00:39]} 29. f4 {[%emt 0:00:59]} Kf6 {[%emt 0:01:06]} 30. Kh3 {[%emt 0:04:09]} Ke6 {[%emt 0:02:32]} 31. Kh4 {[%emt 0:03:03]} Rf8 {[%emt 0:05:45]} 32. Qe3+ {[%emt 0:03:19]} Kf6 {[%emt 0:01:18]} 33. Kxh5 {[%emt 0:00:31]} Rb8 {[%emt 0:01:15]} 34. Kh6 {[%emt 0:00:18]} Kf7 {[%emt 0:02:40]} 35. Qb3+ {[%emt 0:03:03]} Kf6 {[%emt 0:03:02]} 36. Kxh7 {[%emt 0:00:16]} Ra8 {[%emt 0:03:22]} 37. Qc4 {[%emt 0:06:09]} Rb8 {[%emt 0:01:07]} 38. g4 {[%emt 0:00:19]} fxg4 {[%emt 0:02:35]} 39. Qe4 {[%emt 0:00:06]} Ra8 {[%emt 0:00:21]} 40. Qg6# {[%emt 0:00:06]} 1-0

[Event "CZE Extraliga 2019-20"]
[Site "Czech Republic"]
[Date "2020.01.26"]
[Round "6.4"]
[White "Heberla, Bartlomiej"]
[Black "Vykouk, Jan"]
[Result "1-0"]
[ECO "E71"]
[WhiteElo "2552"]
[BlackElo "2477"]
[Annotator "ChessBase"]
[PlyCount "73"]
[EventDate "2019.09.15"]
[EventType "team-tourn"]
[EventCountry "CZE"]
[SourceTitle "playchess.com"]
[Source "ChessBase"]
[SourceQuality "1"]
[TimeControl "40/5400+30:1800+30"]

1. d4 {[%emt 0:00:00]} Nf6 {[%emt 0:00:00]} 2. c4 {[%emt 0:00:00]} g6 {[%emt 0:00:00]} 3. Nc3 {[%emt 0:00:00]} Bg7 {[%emt 0:00:00]} 4. e4 {[%emt 0:00:00]} d6 {[%emt 0:00:00]} 5. h3 {[%emt 0:00:00]} O-O {[%emt 0:00:26]} 6. Be3 {[%emt 0:00:00]} c5 {[%emt 0:00:33]} 7. d5 {[%emt 0:03:06]} e6 {[%emt 0:00:56]} 8. Bd3 {[%emt 0:00:02]} exd5 {[%emt 0:02:09]} 9. exd5 {[%emt 0:00:03]} Re8 {[%emt 0:05:50]} 10. Nf3 {[%emt 0:00:08]} Bf5 {[%emt 0:00:59]} 11. Bxf5 {[%emt 0:20:24]} gxf5 {[%emt 0:00:05]} 12. O-O {[%emt 0:00:22]} Ne4 {[%emt 0:00:20]} 13. Ne2 {[%emt 0:08:34]} Qe7 {[%emt 0:00:57]} 14. Qc2 {[%emt 0:01:28]} Nd7 {[%emt 0:07:16]} 15. Rae1 {[%emt 0:01:37]} Rab8 {[%emt 0:03:17]} 16. Bc1 {[%emt 0:01:52]} Ne5 {[%emt 0:04:07]} 17. Nxe5 {[%emt 0:06:09]} Qxe5 {[%emt 0:01:40]} 18. b3 {[%emt 0:17:02]} b5 {[%emt 0:13:24]} 19. Bf4 {[%emt 0:03:05]} Qe7 {[%emt 0:00:11]} 20. f3 {[%emt 0:14:24]} Nf6 {[%emt 0:00:08]} 21. Ng3 {[%emt 0:08:27]} Qxe1 {[%emt 0:00:12]} 22. Rxe1 {[%emt 0:00:03]} Rxe1+ {[%emt 0:00:06]} 23. Kf2 {[%emt 0:06:14]} Rbe8 {[%emt 0:00:05]} 24. Nxf5 {[%emt 0:00:13]} Nh5 {[%emt 0:01:51]} 25. Bxd6 {[%emt 0:00:49]} Bf6 {[%emt 0:10:53]} 26. cxb5 {[%emt 0:01:32]} Bg5 {[%emt 0:03:01]} 27. Qc4 {[%emt 0:00:54]} Nf6 {[%emt 0:05:24]} 28. h4 {[%emt 0:01:56]} Bd2 {[%emt 0:00:20]} 29. Qd3 {[%emt 0:01:42]} Rd1 {[%emt 0:02:23]} 30. Qc2 {[%emt 0:02:33]} Ree1 {[%emt 0:10:16]} 31. Ne7+ {[%emt 0:00:34]} Kf8 {[%emt 0:02:35]} 32. Nf5+ {[%emt 0:00:01]} Kg8 {[%emt 0:01:10]} 33. Qb2 {[%emt 0:00:57]} Rf1+ {[%emt 0:01:18]} 34. Kg3 {[%emt 0:00:13]} Be1+ {[%emt 0:02:18]} 35. Kh3 {[%emt 0:00:01]} Rh1+ {[%emt 0:10:13]} 36. Bh2 {[%emt 0:00:03]} Bxh4 {[%emt 0:07:23]} 37. Kxh4 {[%emt 0:01:28]} 1-0

[Event "CZE Extraliga 2019-20"]
[Site "Czech Republic"]
[Date "2020.01.26"]
[Round "6.4"]
[White "Oral, Tomas"]
[Black "Mazur, Stefan"]
[Result "1/2-1/2"]
[ECO "C78"]
[WhiteElo "2509"]
[BlackElo "2445"]
[Annotator "ChessBase"]
[PlyCount "127"]
[EventDate "2019.09.15"]
[EventType "team-tourn"]
[EventCountry "CZE"]
[SourceTitle "playchess.com"]
[Source "ChessBase"]
[SourceQuality "1"]
[TimeControl "40/5400+30:1800+30"]

1. e4 {[%emt 0:01:00]} e5 {[%emt 0:00:00]} 2. Nf3 {[%emt 0:00:28]} Nc6 {[%emt 0:00:06]} 3. Bb5 {[%emt 0:00:07]} a6 {[%emt 0:00:12]} 4. Ba4 {[%emt 0:00:06]} Nf6 {[%emt 0:00:29]} 5. O-O {[%emt 0:00:10]} Bc5 {[%emt 0:00:30]} 6. c3 {[%emt 0:00:27]} O-O {[%emt 0:00:12]} 7. d4 {[%emt 0:00:44]} Ba7 {[%emt 0:00:09]} 8. dxe5 {[%emt 0:12:17]} Nxe4 {[%emt 0:00:22]} 9. Qd5 {[%emt 0:00:32]} Nc5 {[%emt 0:00:11]} 10. Bc2 {[%emt 0:00:05]} Ne7 {[%emt 0:00:22]} 11. Qd1 {[%emt 0:06:04]} d5 {[%emt 0:00:25]} 12. exd6 {[%emt 0:00:41]} Qxd6 {[%emt 0:00:08]} 13. Qxd6 {[%emt 0:00:30]} cxd6 {[%emt 0:00:09]} 14. Bg5 {[%emt 0:09:54]} f6 {[%emt 0:12:02]} 15. Bf4 {[%emt 0:11:14]} Bf5 {[%emt 0:01:36]} 16. Na3 {[%emt 0:00:29]} Bxc2 {[%emt 0:01:10]} 17. Nxc2 {[%emt 0:00:02]} Nd3 {[%emt 0:00:59]} 18. Bxd6 {[%emt 0:00:31]} Rfe8 {[%emt 0:00:06]} 19. Ba3 {[%emt 0:10:49]} Nc6 {[%emt 0:01:24]} 20. Rad1 {[%emt 0:24:30]} Rad8 {[%emt 0:28:41]} 21. Rd2 {[%emt 0:00:42]} g5 {[%emt 0:02:48]} 22. Ncd4 {[%emt 0:01:53]} Nxd4 {[%emt 0:10:46]} 23. cxd4 {[%emt 0:05:14]} Nf4 {[%emt 0:00:09]} 24. Rfd1 {[%emt 0:01:59]} g4 {[%emt 0:10:28]} 25. Nh4 {[%emt 0:00:01]} Rxd4 {[%emt 0:00:22]} 26. Rxd4 {[%emt 0:00:05]} Bxd4 {[%emt 0:01:50]} 27. Nf5 {[%emt 0:01:09]} Bb6 {[%emt 0:02:33]} 28. Nh6+ {[%emt 0:03:12]} Kg7 {[%emt 0:00:15]} 29. Nxg4 {[%emt 0:00:02]} h5 {[%emt 0:08:04]} 30. Ne3 {[%emt 0:00:18]} Bxe3 {[%emt 0:00:10]} 31. fxe3 {[%emt 0:00:02]} Rxe3 {[%emt 0:00:09]} 32. Rd7+ {[%emt 0:03:13]} Kg6 {[%emt 0:00:09]} 33. Kf2 {[%emt 0:00:04]} Re5 {[%emt 0:05:10]} 34. Kf3 {[%emt 0:02:39]} Ne6 {[%emt 0:01:07]} 35. Rxb7 {[%emt 0:00:27]} Ng5+ {[%emt 0:08:07]} 36. Kg3 {[%emt 0:02:32]} Re4 {[%emt 0:04:12]} 37. Rb4 {[%emt 0:01:26]} Re6 {[%emt 0:01:45]} 38. Rd4 {[%emt 0:00:46]} Re2 {[%emt 0:00:46]} 39. h4 {[%emt 0:01:10]} Nf7 {[%emt 0:00:33]} 40. Ra4 {[%emt 0:01:32]} Ne5 {[%emt 0:00:50]} 41. Rxa6 {[%emt 0:05:06]} Nd3 {[%emt 0:04:06]} 42. Kf3 {[%emt 0:08:35]} Rc2 {[%emt 0:00:09]} 43. Be7 {[%emt 0:04:14]} Ne1+ {[%emt 0:01:12]} 44. Kf4 {[%emt 0:02:36]} Rf2+ {[%emt 0:02:20]} 45. Ke3 {[%emt 0:00:48]} Rf5 {[%emt 0:00:25]} 46. Rxf6+ {[%emt 0:07:33]} Rxf6 {[%emt 0:01:50]} 47. Bxf6 {[%emt 0:00:01]} Kxf6 {[%emt 0:00:15]} 48. g3 {[%emt 0:00:04]} Ke5 {[%emt 0:04:58]} 49. a4 {[%emt 0:02:15]} Nc2+ {[%emt 0:00:55]} 50. Kd3 {[%emt 0:00:52]} Nd4 {[%emt 0:07:58]} 51. Kc4 {[%emt 0:01:50]} Nf5 {[%emt 0:00:13]} 52. Kc5 {[%emt 0:00:38]} Ke6 {[%emt 0:00:08]} 53. Kc6 {[%emt 0:00:48]} Nd4+ {[%emt 0:00:25]} 54. Kb6 {[%emt 0:01:03]} Kd7 {[%emt 0:00:06]} 55. b4 {[%emt 0:00:19]} Kc8 {[%emt 0:02:05]} 56. a5 {[%emt 0:00:14]} Kb8 {[%emt 0:03:39]} 57. b5 {[%emt 0:00:29]} Nf5 {[%emt 0:01:30]} 58. a6 {[%emt 0:00:13]} Nxg3 {[%emt 0:01:42]} 59. a7+ {[%emt 0:01:14]} Ka8 {[%emt 0:00:03]} 60. Kc6 {[%emt 0:01:14]} Nf5 {[%emt 0:00:26]} 61. b6 {[%emt 0:00:08]} Ne7+ {[%emt 0:01:35]} 62. Kd6 {[%emt 0:00:43]} Nc8+ {[%emt 0:00:12]} 63. Kc7 {[%emt 0:00:05]} Nxb6 {[%emt 0:00:08]} 64. Kxb6 1/2-1/2

[Event "CZE Extraliga 2019-20"]
[Site "Czech Republic"]
[Date "2020.01.26"]
[Round "6.4"]
[White "Ponizil, Cyril"]
[Black "Pechac, Jergus"]
[Result "1/2-1/2"]
[ECO "C65"]
[WhiteElo "2504"]
[BlackElo "2489"]
[Annotator "ChessBase"]
[PlyCount "98"]
[EventDate "2019.09.15"]
[EventType "team-tourn"]
[EventCountry "CZE"]
[SourceTitle "playchess.com"]
[Source "ChessBase"]
[SourceQuality "1"]
[TimeControl "40/5400+30:1800+30"]

1. e4 {[%emt 0:00:00]} e5 {[%emt 0:00:00]} 2. Nf3 {[%emt 0:00:05]} Nc6 {[%emt 0:00:00]} 3. Bb5 {[%emt 0:00:09]} Nf6 {[%emt 0:00:00]} 4. d3 {[%emt 0:00:01]} Bc5 {[%emt 0:00:00]} 5. c3 {[%emt 0:00:11]} O-O {[%emt 0:01:25]} 6. O-O {[%emt 0:00:59]} d6 {[%emt 0:00:04]} 7. Nbd2 {[%emt 0:00:40]} Ne7 {[%emt 0:00:22]} 8. Re1 {[%emt 0:00:10]} c6 {[%emt 0:00:48]} 9. Ba4 {[%emt 0:00:08]} Ng6 {[%emt 0:00:16]} 10. Nf1 {[%emt 0:00:04]} h6 {[%emt 0:02:59]} 11. h3 {[%emt 0:01:27]} a5 {[%emt 0:07:14]} 12. Ng3 {[%emt 0:00:48]} b5 {[%emt 0:00:50]} 13. Bc2 {[%emt 0:00:04]} Bb6 {[%emt 0:01:37]} 14. a4 {[%emt 0:02:14]} b4 {[%emt 0:02:44]} 15. d4 {[%emt 0:00:05]} c5 {[%emt 0:05:16]} 16. Be3 {[%emt 0:14:50]} Qc7 {[%emt 0:06:26]} 17. Bd3 {[%emt 0:07:01]} Rb8 {[%emt 0:08:28]} 18. Rc1 {[%emt 0:02:00]} bxc3 {[%emt 0:03:45]} 19. Rxc3 {[%emt 0:03:09]} exd4 {[%emt 0:08:30]} 20. Bxd4 {[%emt 0:00:17]} Qd8 {[%emt 0:00:54]} 21. Be3 {[%emt 0:05:03]} c4 {[%emt 0:00:05]} 22. Rxc4 {[%emt 0:03:51]} Bxe3 {[%emt 0:02:29]} 23. Rxe3 {[%emt 0:00:08]} Rxb2 {[%emt 0:00:53]} 24. Rd4 {[%emt 0:00:05]} Qc7 {[%emt 0:02:01]} 25. Bb5 {[%emt 0:11:09]} Rc2 {[%emt 0:00:41]} 26. Re1 {[%emt 0:02:04]} Nf4 {[%emt 0:04:56]} 27. Rd2 {[%emt 0:03:48]} Rc3 {[%emt 0:00:32]} 28. Rxd6 {[%emt 0:04:53]} Bxh3 {[%emt 0:03:12]} 29. gxh3 {[%emt 0:11:30]} Rxf3 {[%emt 0:03:10]} 30. Qxf3 {[%emt 0:07:08]} Qxd6 {[%emt 0:00:02]} 31. e5 {[%emt 0:00:05]} Qb4 {[%emt 0:00:11]} 32. Kf1 {[%emt 0:04:08]} N6d5 {[%emt 0:00:13]} 33. Nf5 {[%emt 0:00:48]} Kh7 {[%emt 0:02:40]} 34. Nd6 {[%emt 0:07:09]} f6 {[%emt 0:09:55]} 35. Bd3+ {[%emt 0:02:35]} g6 {[%emt 0:04:40]} 36. Rb1 {[%emt 0:01:45]} Qd4 {[%emt 0:02:36]} 37. Be4 {[%emt 0:06:43]} Qxe5 {[%emt 0:15:16]} 38. Nc4 {[%emt 0:00:03]} Qd4 {[%emt 0:02:15]} 39. Bxd5 {[%emt 0:00:06]} Nxd5 {[%emt 0:00:45]} 40. Nxa5 {[%emt 0:00:10]} Qc5 {[%emt 0:01:18]} 41. Qe4 {[%emt 0:10:21]} Rf7 {[%emt 0:02:12]} 42. Nb7 {[%emt 0:00:58]} Qc6 {[%emt 0:01:08]} 43. Nd8 {[%emt 0:03:37]} Qa6+ {[%emt 0:04:49]} 44. Rb5 {[%emt 0:02:43]} Rd7 {[%emt 0:04:36]} 45. Ne6 {[%emt 0:04:36]} Nc3 {[%emt 0:00:50]} 46. Nf8+ {[%emt 0:06:58]} Kg7 {[%emt 0:03:25]} 47. Qe8 {[%emt 0:01:24]} Rd6 {[%emt 0:00:07]} 48. Qe7+ {[%emt 0:02:48]} Kg8 {[%emt 0:00:01]} 49. Qe8 {[%emt 0:00:27]} Kg7 {[%emt 0:02:01]} 1/2-1/2

[Event "CZE Extraliga 2019-20"]
[Site "Czech Republic"]
[Date "2020.01.26"]
[Round "6.4"]
[White "LAB5 Rasik Vitezslav GM"]
[Black "UNI4 Bernasek Jan GM"]
[Result "1/2-1/2"]
[ECO "B10"]
[WhiteElo "2470"]
[BlackElo "2490"]
[Annotator "ChessBase"]
[PlyCount "53"]
[EventDate "2019.09.15"]
[EventType "team-tourn"]
[EventCountry "CZE"]
[SourceTitle "playchess.com"]
[Source "ChessBase"]
[SourceQuality "1"]
[TimeControl "40/5400+30:1800+30"]

1. e4 {[%emt 0:00:00]} c6 {[%emt 0:00:00]} 2. d3 {[%emt 0:00:00]} d5 {[%emt 0:00:05]} 3. Nd2 {[%emt 0:00:05]} e5 {[%emt 0:00:24]} 4. Ngf3 {[%emt 0:00:26]} Bd6 {[%emt 0:00:15]} 5. g3 {[%emt 0:00:15]} Nf6 {[%emt 0:00:35]} 6. Bg2 {[%emt 0:00:16]} O-O {[%emt 0:00:09]} 7. O-O {[%emt 0:00:08]} Re8 {[%emt 0:00:39]} 8. Re1 {[%emt 0:05:43]} Nbd7 {[%emt 0:02:19]} 9. h3 {[%emt 0:05:33]} Bf8 {[%emt 0:11:54]} 10. b3 {[%emt 0:14:19]} dxe4 {[%emt 0:09:47]} 11. dxe4 {[%emt 0:20:36]} a5 {[%emt 0:01:14]} 12. a4 {[%emt 0:06:26]} b5 {[%emt 0:02:48]} 13. Bb2 {[%emt 0:01:07]} Qb6 {[%emt 0:02:03]} 14. Nh4 {[%emt 0:04:14]} Nc5 {[%emt 0:05:50]} 15. Bc3 {[%emt 0:08:52]} Qc7 {[%emt 0:11:53]} 16. Bf1 {[%emt 0:03:58]} Rd8 {[%emt 0:05:18]} 17. Nhf3 {[%emt 0:06:46]} Bd6 {[%emt 0:11:43]} 18. Qc1 {[%emt 0:00:42]} Bb7 {[%emt 0:00:45]} 19. Nh4 {[%emt 0:03:01]} g6 {[%emt 0:08:17]} 20. Bg2 {[%emt 0:00:33]} Bf8 {[%emt 0:07:09]} 21. Nhf3 {[%emt 0:01:04]} Re8 {[%emt 0:02:19]} 22. Qb2 {[%emt 0:01:37]} Nfd7 {[%emt 0:02:21]} 23. Qa2 {[%emt 0:02:44]} b4 {[%emt 0:05:17]} 24. Bb2 {[%emt 0:00:05]} Ba6 {[%emt 0:01:58]} 25. Rad1 {[%emt 0:00:51]} Ne6 {[%emt 0:00:49]} 26. Qa1 {[%emt 0:00:53]} Bg7 {[%emt 0:00:46]} 27. Nf1 {[%emt 0:04:12]} 1/2-1/2

[Event "CZE Extraliga 2019-20"]
[Site "Czech Republic"]
[Date "2020.01.26"]
[Round "6.5"]
[White "Cyborowski, Lukasz"]
[Black "Polak, Tomas"]
[Result "1/2-1/2"]
[ECO "E11"]
[WhiteElo "2509"]
[BlackElo "2527"]
[Annotator "RC"]
[PlyCount "77"]
[EventDate "2019.09.15"]
[EventType "team-tourn"]
[EventCountry "CZE"]
[SourceTitle "playchess.com"]
[Source "ChessBase"]
[SourceQuality "1"]
[TimeControl "40/5400+30:1800+30"]

1. d4 {[%emt 0:00:00]} Nf6 {[%emt 0:00:00]} 2. Nf3 {[%emt 0:00:00]} e6 {[%emt 0:01:13]} 3. c4 {[%emt 0:00:46]} Bb4+ {[%emt 0:03:45]} 4. Nbd2 {[%emt 0:00:27]} b6 {[%emt 0:00:37]} 5. a3 {[%emt 0:00:29]} Bxd2+ {[%emt 0:00:12]} 6. Qxd2 {[%emt 0:00:06]} Bb7 {[%emt 0:00:13]} 7. e3 {[%emt 0:00:07]} d6 {[%emt 0:01:30]} 8. Be2 {[%emt 0:02:09]} Nbd7 {[%emt 0:00:26]} 9. O-O {[%emt 0:00:41]} O-O {[%emt 0:00:08]} 10. b4 {[%emt 0:00:50]} a5 {[%emt 0:06:19]} 11. Bb2 {[%emt 0:01:06]} axb4 {[%emt 0:00:21]} 12. axb4 {[%emt 0:00:16]} Qe7 {[%emt 0:00:19]} 13. Rxa8 {[%emt 0:21:55]} Rxa8 {[%emt 0:00:27]} 14. Ra1 {[%emt 0:00:09]} Rxa1+ {[%emt 0:03:04]} 15. Bxa1 {[%emt 0:00:38]} Qf8 {[%emt 0:00:17]} 16. Qa2 {[%emt 0:03:03]} Qa8 {[%emt 0:00:16]} 17. Qxa8+ {[%emt 0:00:16]} Bxa8 {[%emt 0:00:04]} 18. Nd2 {[%emt 0:00:27]} c5 {[%emt 0:05:42]} 19. Bc3 {[%emt 0:05:29]} Ne4 {[%emt 0:12:13]} 20. Nxe4 {[%emt 0:00:43]} Bxe4 {[%emt 0:00:04]} 21. f3 {[%emt 0:02:55]} Bc6 {[%emt 0:02:25]} 22. Kf2 {[%emt 0:12:05]} Kf8 {[%emt 0:03:47]} 23. e4 {[%emt 0:17:57]} e5 {[%emt 0:03:52]} 24. d5 {[%emt 0:02:16]} Bb7 {[%emt 0:01:06]} 25. b5 {[%emt 0:01:45]} Bc8 {[%emt 0:15:33]} 26. g3 {[%emt 0:00:15]} Nf6 {[%emt 0:06:30]} 27. Kg2 {[%emt 0:01:45]} h6 {[%emt 0:01:29]} 28. Bd2 {[%emt 0:01:40]} Ke7 {[%emt 0:04:08]} 29. Bd3 {[%emt 0:00:35]} Nh7 {[%emt 0:02:04]} 30. f4 {[%emt 0:01:50]} Bd7 {[%emt 0:04:31]} 31. Bc3 {[%emt 0:03:02]} f6 {[%emt 0:01:08]} 32. Be2 {[%emt 0:01:15]} Nf8 {[%emt 0:03:08]} 33. Bh5 {[%emt 0:03:52]} g6 {[%emt 0:01:31]} 34. Be2 {[%emt 0:00:29]} Kf7 {[%emt 0:00:18]} 35. Bd2 {[%emt 0:04:25]} Kg7 {[%emt 0:01:45]} 36. h3 {[%emt 0:01:55]} Bc8 {[%emt 0:03:02]} 37. Bc3 {[%emt 0:00:47]} Kf7 {[%emt 0:02:15]} 38. Bd2 {[%emt 0:01:14]} Kg7 {[%emt 0:00:13]} 39. Bc3 {[%emt 0:01:03]} 1/2-1/2